bitfinex/quotes_ETHUSD_20240612
["timestamp","ask_amount","ask_price","bid_price","bid_amount"]
[1718212277290,0.828,3610.3,3610.1,2.76996]
[1718212277589,0.57673972,3610.4,3610.1,2.76996]
[1718212278709,0.57673972,3610.4,3610.2,0.05539236]
[1718212278857,1.69310959,3610.5,3610.2,0.05539236]
[1718212278858,1.40473972,3610.5,3610.2,0.3379276]
[1718212279056,3.57673972,3610.5,3610.3,4.20329514]
[1718212279371,0.57673972,3610.6,3610.3,4.20329514]
[1718212281995,0.57673972,3610.6,3610.5,2.76969]
[1718212282198,0.57673972,3610.6,3610.5,4.20313514]
[1718212282708,0.57673972,3610.6,3610.5,4.89664218]
[1718212282891,3.0,3610.7,3610.5,4.89664218]
[1718212283094,3.0,3610.7,3610.6,1.48883095]
[1718212283980,0.57673972,3610.9,3610.7,2.76954]
[1718212284164,0.57673972,3610.9,3610.8,0.05538348]
[1718212284660,0.57673972,3610.9,3610.7,2.76954]
[1718212284862,0.57673972,3610.9,3610.8,0.05538386]
[1718212285464,0.57673972,3610.9,3610.7,2.76954]
[1718212285701,1.69310959,3611.0,3610.7,2.76954]
[1718212285702,0.828,3611.0,3610.7,2.76954]
[1718212286054,0.58044603,3610.9,3610.7,2.76954]
[1718212288596,0.828,3611.0,3610.7,2.76954]
[1718212289163,0.828,3611.0,3610.8,0.05538292]
[1718212292699,0.5805823,3610.9,3610.8,0.05538292]
[1718212292891,0.5805823,3610.9,3610.7,2.76954]
[1718212294298,0.828,3610.8,3610.4,2.7697]
[1718212294473,3.093,3610.8,3610.5,1.43344514]
[1718212294669,3.0,3610.7,3610.5,1.43344514]
[1718212299093,3.5805823,3610.7,3610.5,1.43344514]
[1718212299277,3.0,3610.7,3610.5,1.43344514]
[1718212299807,3.5805823,3610.7,3610.5,1.43344514]
[1718212300189,3.0,3610.7,3610.5,1.43344514]
[1718212300390,1.4085823,3610.8,3610.5,1.43344514]
[1718212300911,0.5805823,3610.9,3610.5,1.43344514]
[1718212301575,0.5805823,3610.9,3610.6,0.0553854]
[1718212302505,4.4085823,3611.0,3610.6,0.0553854]
[1718212302678,4.4085823,3611.0,3610.6,2.8249954]
[1718212302878,0.5805823,3610.9,3610.6,2.8249954]
[1718212303886,0.5805823,3610.9,3610.6,2.76961]
[1718212304914,0.5805823,3610.9,3610.6,3.18991551]
[1718212305117,0.5805823,3611.1,3611.0,2.76931]
[1718212305326,7.46,3611.3,3611.2,2.76916]
[1718212305484,0.87087345,3611.5,3611.2,2.76916]
[1718212305485,0.5805823,3611.5,3611.2,2.76916]
[1718212305684,0.5805823,3611.5,3611.3,0.05537574]
[1718212306413,0.5805823,3611.6,3611.3,0.05537574]
[1718212306616,1.4085823,3611.7,3611.3,0.05537574]
[1718212307304,4.4085823,3611.7,3611.3,0.05537574]
[1718212308516,0.5805823,3611.6,3611.3,0.05537574]
[1718212310120,0.5805823,3611.6,3611.2,2.76916]
[1718212310285,3.5805823,3611.7,3611.5,2.76892]
[1718212310608,4.4085823,3611.7,3611.5,2.76892]
[1718212310816,3.828,3611.7,3611.5,2.76892]
[1718212312513,4.4085823,3611.7,3611.5,2.76892]
[1718212313827,4.4085823,3611.7,3610.8,2.76946]
[1718212313828,4.4085823,3611.7,3611.2,2.76909]
[1718212313997,0.828,3611.5,3611.2,2.76909]
[1718212318649,4.4085823,3611.7,3611.2,2.76909]
[1718212320541,7.1773623,3611.7,3611.2,2.76909]
[1718212320742,3.59695,3611.5,3610.9,2.76932]
[1718212320927,0.828,3611.3,3610.9,2.76932]
[1718212321133,0.828,3611.3,3610.6,2.76954]
[1718212321433,1.4085823,3611.3,3610.7,1.43344514]
[1718212322006,4.1777023,3611.3,3610.7,1.43344514]
[1718212322227,3.0,3611.2,3610.7,1.43344514]
[1718212324243,3.5805823,3611.2,3610.7,1.43344514]
[1718212325849,3.0,3611.2,3610.7,1.43344514]
[1718212326046,3.0,3611.2,3610.7,2.09799365]
[1718212327854,3.0,3611.2,3610.8,2.82484273]
[1718212331953,3.0,3611.3,3610.8,2.82484273]
[1718212333443,3.0,3611.3,3611.0,2.76928]
[1718212333660,0.5805823,3611.4,3611.2,2.76916]
[1718212333823,0.87087345,3611.6,3611.2,2.76916]
[1718212333824,0.5805823,3611.6,3611.2,2.76916]
[1718212334021,0.5805823,3611.6,3611.3,0.05537586]
[1718212335146,4.4085823,3611.7,3611.3,0.05537586]
[1718212335833,0.5805823,3611.6,3611.3,0.05537586]
[1718212336834,4.4085823,3611.7,3611.3,0.05537586]
[1718212338326,0.5805823,3611.6,3611.3,0.05537586]
[1718212340161,0.5805823,3611.6,3611.4,2.769]
[1718212340350,7.46,3611.8,3611.4,2.769]
[1718212340551,7.46,3611.8,3611.6,2.76884]
[1718212341669,3.0,3611.7,3611.6,2.76884]
[1718212342237,3.0,3611.7,3611.6,3.47219832]
[1718212345679,0.5805823,3611.9,3611.6,4.20228514]
[1718212345884,0.5805823,3611.9,3611.8,2.7687]
[1718212349712,0.5805823,3611.9,3611.8,4.20214514]
[1718212349870,0.5805823,3611.9,3611.8,4.62235965]
[1718212352476,0.5805823,3611.9,3611.8,8.21905965]
[1718212357215,4.1611646,3612.2,3611.8,8.21905965]
[1718212357393,3.0,3612.2,3612.1,2.76847]
[1718212357715,3.0,3612.6,3612.3,2.76827]
[1718212358019,3.0,3612.6,3612.3,4.20171514]
[1718212363124,0.828,3612.6,3612.0,2.76851]
[1718212363363,2.4913,3612.1,3611.4,2.3395]
[1718212363529,5.4913,3612.1,3611.5,1.70997495]
[1718212364094,5.4913,3612.1,3611.7,2.76875]
[1718212364394,5.4913,3612.1,3611.8,1.43344514]
[1718212366591,3.0,3612.3,3611.8,1.43344514]
[1718212366821,3.0,3612.3,3611.9,0.42021951]
[1718212367022,3.0,3612.3,3611.9,1.85366465]
[1718212367628,3.0,3612.3,3611.9,4.62228465]
[1718212367831,3.828,3612.6,3611.9,4.62228465]
[1718212370354,3.0,3612.6,3612.2,2.76838]
[1718212370536,2.2726,3612.7,3612.2,4.20182514]
[1718212370736,5.2726,3612.7,3612.2,4.20182514]
[1718212371121,5.2726,3612.7,3612.3,0.05536042]
[1718212373451,5.2726,3612.7,3612.2,4.20182514]
[1718212374323,3.0,3612.7,3612.2,4.66402961]
[1718212374659,3.828,3612.8,3612.2,4.66402961]
[1718212376825,3.828,3612.8,3612.2,7.10212961]
[1718212377969,3.828,3612.8,3612.3,1.48880579]
[1718212380156,3.828,3612.8,3612.4,2.76823]
[1718212382830,3.0,3612.8,3612.4,2.76823]
[1718212383531,3.828,3612.8,3612.4,2.76823]
[1718212386232,4.4085823,3612.8,3612.4,2.76823]
[1718212386760,3.828,3612.8,3612.4,2.76823]
[1718212387325,4.4085823,3612.8,3612.4,2.76823]
[1718212388042,3.5805823,3612.8,3612.4,2.76823]
[1718212388236,0.5805823,3612.8,3612.4,3.43220751]
[1718212388446,4.4085823,3612.9,3612.4,3.43220751]
[1718212388749,4.4085823,3612.9,3612.7,5.1997]
[1718212388750,3.5805823,3612.9,3612.7,5.1997]
[1718212388947,3.0,3613.0,3612.7,2.768]
[1718212389180,1.4085823,3613.1,3612.7,2.768]
[1718212389469,0.5805823,3613.0,3612.7,2.768]
[1718212390339,0.5805823,3613.0,3612.7,3.49771227]
[1718212390739,1.4085823,3613.1,3612.7,3.49771227]
[1718212391269,0.5805823,3613.0,3612.7,3.49771227]
[1718212391834,0.828,3613.1,3612.7,3.49771227]
[1718212391835,0.5805823,3612.9,3612.7,3.49771227]
[1718212392939,0.5805823,3613.0,3612.7,3.49771227]
[1718212393134,3.5805823,3613.0,3612.8,0.49311574]
[1718212393495,0.5805823,3612.9,3612.8,0.49311574]
[1718212393895,0.5805823,3613.0,3612.8,0.49311574]
[1718212394083,1.69691741,3613.1,3612.8,0.49311574]
[1718212394084,0.5805823,3612.9,3612.8,0.49311574]
[1718212396078,0.5805823,3613.0,3612.8,0.49311574]
[1718212396878,0.5805823,3613.1,3612.8,0.49311574]
[1718212401678,0.5805823,3613.1,3612.9,0.6372228]
[1718212401878,3.5805823,3613.2,3612.9,0.6372228]
[1718212402284,0.5805823,3613.1,3612.9,0.6372228]
[1718212403186,3.5805823,3613.2,3612.9,0.6372228]
[1718212403387,0.5805823,3613.1,3612.9,0.6372228]
[1718212404308,3.5805823,3613.2,3612.9,0.6372228]
[1718212404905,4.4085823,3613.2,3612.7,5.1494]
[1718212405124,0.5805823,3613.1,3612.7,5.1494]
[1718212409969,4.4085823,3613.2,3612.7,5.1494]
[1718212410256,0.5805823,3613.1,3612.7,5.1494]
[1718212410460,0.5805823,3613.1,3612.7,5.87408227]
[1718212410621,4.4085823,3613.2,3612.7,5.87408227]
[1718212411373,0.5805823,3613.1,3612.7,5.87408227]
[1718212411539,4.4085823,3613.2,3612.7,5.87408227]
[1718212411740,0.5805823,3613.1,3612.7,5.87408227]
[1718212416085,0.5805823,3613.0,3612.7,5.87408227]
[1718212416961,0.5805823,3613.1,3612.7,5.87408227]
[1718212417380,0.5805823,3613.0,3612.7,5.87408227]
[1718212419895,0.5805823,3613.1,3612.7,5.87408227]
[1718212421166,0.5805823,3613.0,3612.7,5.87408227]
[1718212424502,0.5805823,3613.0,3612.7,3.49268227]
[1718212426098,0.5805823,3613.1,3612.7,3.49268227]
[1718212426302,0.5805823,3613.0,3612.7,3.49268227]
[1718212426628,0.5805823,3613.0,3612.8,0.68397595]
[1718212426837,0.5805823,3613.1,3612.8,0.68397595]
[1718212428211,3.5805823,3613.2,3612.8,0.68397595]
[1718212428566,3.5805823,3613.2,3613.0,2.3712]
[1718212428703,0.5805823,3613.2,3613.0,2.3712]
[1718212428905,3.0,3613.3,3613.1,0.80844611]
[1718212429345,3.5805823,3613.3,3613.1,0.80844611]
[1718212433433,0.5805823,3613.3,3613.1,0.80844611]
[1718212436977,0.5805823,3613.3,3613.1,3.57613611]
[1718212437267,0.5805823,3613.4,3613.1,3.57613611]
[1718212437462,0.5805823,3613.3,3613.1,3.57613611]
[1718212446311,0.5805823,3613.3,3613.1,2.76769]
[1718212447018,0.63597115,3613.4,3613.1,2.76769]
[1718212447316,0.05538885,3613.4,3613.1,2.76769]
[1718212447798,0.63597115,3613.4,3613.1,2.76769]
[1718212449200,0.5805823,3613.4,3613.1,2.76769]
[1718212455917,0.05538885,3613.3,3613.1,2.76769]
[1718212456124,2.89747115,3613.3,3612.8,2.76787]
[1718212456423,0.828,3613.1,3612.5,2.76813]
[1718212456628,0.05538885,3613.0,3612.5,2.76813]
[1718212456923,1.4085823,3612.9,3612.5,2.76813]
[1718212457091,0.5805823,3612.9,3612.5,2.76813]
[1718212457805,0.63597115,3613.0,3612.5,2.76813]
[1718212458202,0.05538885,3613.0,3612.5,2.76813]
[1718212458428,0.63597115,3613.0,3612.5,2.76813]
[1718212458913,0.5805823,3613.0,3612.5,2.76813]
[1718212459122,1.4085823,3613.1,3612.5,2.76813]
[1718212459349,0.5805823,3613.0,3612.5,2.76813]
[1718212459845,0.5805823,3613.1,3612.7,2.76798]
[1718212460348,0.63597115,3613.1,3612.7,2.76798]
[1718212461043,0.05538885,3613.1,3612.7,2.76798]
[1718212461400,0.63597115,3613.1,3612.7,2.76798]
[1718212461797,0.5805823,3613.1,3612.7,2.76798]
[1718212462044,0.5805823,3613.1,3612.9,2.76785]
[1718212462929,0.63597115,3613.2,3612.9,2.76785]
[1718212463305,0.5805823,3613.1,3612.9,2.76785]
[1718212465548,0.63597115,3613.2,3612.9,2.76785]
[1718212465744,0.5805823,3613.1,3612.9,2.76785]
[1718212466544,0.63597115,3613.2,3612.9,2.76785]
[1718212466934,0.5805823,3613.1,3612.9,2.76785]
[1718212470830,0.63597115,3613.2,3612.9,2.76785]
[1718212472241,0.5805823,3613.1,3612.9,2.76785]
[1718212472484,0.5805823,3613.1,3613.0,2.4664]
[1718212472824,0.86891741,3613.3,3613.1,2.7677]
[1718212472825,0.5805823,3613.3,3613.1,2.7677]
[1718212473121,3.5805823,3613.3,3613.1,2.7677]
[1718212473321,3.5805823,3613.3,3613.1,3.47646747]
[1718212473517,0.5805823,3613.3,3613.1,3.47646747]
[1718212473756,3.0,3613.2,3613.1,3.47646747]
[1718212473961,0.5805823,3613.2,3613.1,3.47646747]
[1718212474425,0.86891741,3613.4,3613.1,3.47646747]
[1718212474426,0.5805823,3613.3,3613.1,3.47646747]
[1718212474961,0.5805823,3613.2,3613.1,3.47646747]
[1718212475458,0.5805823,3613.3,3613.1,3.47646747]
[1718212475860,0.5805823,3613.2,3613.1,3.47646747]
[1718212476374,0.5805823,3613.3,3613.1,3.47646747]
[1718212480248,0.5805823,3613.4,3613.2,0.77964421]
[1718212480455,0.5805823,3613.4,3613.3,2.76755]
[1718212490271,0.5805823,3613.5,3613.3,2.76755]
[1718212491275,0.5805823,3613.4,3613.3,2.76755]
[1718212493304,0.5805823,3613.5,3613.3,2.76755]
[1718212493898,0.5805823,3613.4,3613.3,2.76755]
[1718212494410,0.5805823,3613.5,3613.3,2.76755]
[1718212496018,0.5805823,3613.4,3613.3,2.76755]
[1718212496375,0.5805823,3613.5,3613.3,2.76755]
[1718212498383,0.5805823,3613.6,3613.3,2.76755]
[1718212501126,0.05538885,3613.5,3613.1,2.7677]
[1718212501326,2.4713,3613.1,3612.3,0.5804578]
[1718212501523,2.4713,3613.1,3612.1,0.8706867]
[1718212501524,0.63597115,3613.0,3612.5,2.7681]
[1718212501729,0.828,3612.7,3612.5,2.7681]
[1718212501887,1.4085823,3612.7,3612.5,2.7681]
[1718212502894,0.05538885,3612.6,3611.7,3.0431578]
[1718212503198,0.828,3612.2,3611.7,0.5804578]
[1718212503411,0.828,3612.0,3611.6,0.5804578]
[1718212503630,0.05538885,3611.9,3611.6,2.76882]
[1718212504844,0.828,3611.8,3611.3,2.76908]
[1718212505152,0.828,3611.8,3610.7,1.4084578]
[1718212505153,2.76911,3611.3,3610.7,1.4084578]
[1718212505305,0.828,3610.9,3610.7,1.4084578]
[1718212505660,0.828,3610.9,3610.4,3.93065561]
[1718212505661,0.05538885,3610.8,3610.4,2.76974]
[1718212505942,0.05538885,3610.8,3610.4,4.48015914]
[1718212507940,0.05538885,3610.8,3610.4,0.276974]
[1718212508250,0.05538885,3610.8,3610.0,2.77007]
[1718212508454,0.05538885,3610.8,3610.1,1.43344514]
[1718212508455,2.82488885,3610.8,3610.1,1.43344514]
[1718212508638,3.88338885,3610.7,3610.1,1.43344514]
[1718212510042,3.74538885,3610.7,3610.1,1.43344514]
[1718212510247,3.74538885,3610.7,3610.2,0.42035151]
[1718212510617,3.71738885,3610.7,3610.2,0.42035151]
[1718212511355,3.71738885,3610.7,3610.0,2.77007]
[1718212511524,3.71738885,3610.7,3610.0,4.20351514]
[1718212512018,3.0,3610.7,3610.0,4.20351514]
[1718212512224,0.828,3610.6,3610.0,4.20351514]
[1718212515523,3.59768,3610.6,3609.7,2.7703]
[1718212515840,5.3477,3610.5,3609.8,1.43344514]
[1718212516039,3.59779,3610.4,3609.7,2.7703]
[1718212516243,3.0,3610.3,3609.7,4.20374514]
[1718212516731,0.828,3610.2,3609.7,4.20374514]
[1718212518827,0.828,3610.2,3609.7,1.43344514]
[1718212519028,2.77001,3610.1,3609.1,2.77074]
[1718212519229,0.828,3609.8,3609.2,1.43344514]
[1718212519470,3.828,3609.8,3609.2,1.43344514]
[1718212519828,0.828,3609.6,3608.8,2.77097]
[1718212520035,2.77047,3609.5,3608.9,1.43344514]
[1718212520330,3.0,3609.4,3608.9,1.43344514]
[1718212521368,3.0,3609.4,3608.6,3.1562]
[1718212521571,3.0,3609.4,3608.7,2.06955009]
[1718212521778,3.0,3609.4,3608.8,2.77099]
[1718212521949,3.0,3609.4,3608.9,1.43344514]
[1718212522148,3.0,3609.7,3608.9,1.43344514]
[1718212523159,3.0,3609.7,3609.0,2.77084]
[1718212523482,3.0,3609.7,3609.1,0.50322851]
[1718212523802,3.0,3609.7,3609.2,1.43344514]
[1718212523987,3.0,3610.1,3609.7,2.77027]
[1718212524195,3.0,3610.1,3609.7,3.59827]
[1718212524406,3.0,3610.1,3609.8,0.359827]
[1718212525602,3.0,3610.1,3609.9,4.20359514]
[1718212525920,7.46,3610.6,3609.9,1.43344514]
[1718212526121,8.288,3610.9,3610.3,2.76981]
[1718212527168,3.0,3610.8,3610.3,2.76981]
[1718212527602,3.0,3610.8,3610.3,3.046791]
[1718212527808,7.46,3611.2,3610.7,2.76948]
[1718212528107,0.828,3611.4,3610.7,2.76948]
[1718212529530,3.828,3611.4,3610.7,2.76948]
[1718212529723,3.21799356,3611.3,3610.7,2.76948]
[1718212530025,0.828,3611.2,3610.7,2.76948]
[1718212530257,3.828,3611.2,3610.7,2.76948]
[1718212530395,0.828,3611.2,3610.7,2.76948]
[1718212533322,0.828,3611.0,3610.4,4.20319514]
[1718212533533,0.828,3610.8,3610.4,4.20319514]
[1718212533916,0.828,3610.6,3610.1,2.76997]
[1718212534128,0.828,3610.4,3610.1,2.76997]
[1718212535238,3.0,3610.8,3610.1,2.76997]
[1718212535239,2.76955,3610.7,3610.1,2.76997]
[1718212535441,3.0,3610.6,3610.1,2.76997]
[1718212535735,3.0,3610.6,3609.8,2.7702]
[1718212535736,2.76971,3610.5,3609.8,2.7702]
[1718212535900,3.0,3610.4,3609.8,4.20364514]
[1718212536099,2.76989,3610.3,3609.5,2.77046]
[1718212536332,3.0,3610.2,3609.6,1.95597114]
[1718212536536,3.0,3610.2,3609.6,1.43344514]
[1718212537250,2.77004,3610.1,3609.5,2.77046]
[1718212537441,3.0,3610.0,3609.2,2.77065]
[1718212537753,3.0,3610.0,3609.3,1.43344514]
[1718212537915,3.0,3610.0,3609.4,0.47073236]
[1718212538319,2.77018,3609.9,3609.2,2.77065]
[1718212538634,3.0,3609.8,3609.2,4.20409514]
[1718212540333,3.0,3610.0,3609.5,2.77046]
[1718212540655,3.0,3610.1,3609.5,2.77046]
[1718212540855,3.0,3610.1,3609.5,3.19085051]
[1718212542258,3.0,3610.1,3609.7,2.77028]
[1718212542559,3.0,3610.2,3609.7,2.77028]
[1718212542731,3.0,3610.2,3609.9,2.7701]
[1718212547093,3.0,3610.2,3609.5,2.79189051]
[1718212547248,3.0,3610.2,3609.6,4.20378514]
[1718212548789,3.0,3610.2,3609.8,2.77021]
[1718212551581,3.0,3610.2,3610.0,2.77]
[1718212552100,3.0,3610.5,3610.0,2.77]
[1718212554581,3.0,3610.5,3610.2,2.76991]
[1718212554761,3.57957486,3610.7,3610.2,3.046901]
[1718212555216,3.57957486,3610.7,3610.4,2.76975]
[1718212555506,3.0,3610.7,3610.4,2.76975]
[1718212556692,3.57957486,3610.9,3610.4,2.76975]
[1718212556864,6.34897486,3610.9,3610.4,2.76975]
[1718212557202,0.829,3610.5,3610.4,2.76975]
[1718212559750,0.829,3610.7,3610.4,2.76975]
[1718212561064,3.57957486,3610.9,3610.6,2.76961]
[1718212561220,3.57957486,3610.9,3610.6,4.20305514]
[1718212561221,3.0,3610.9,3610.6,4.20305514]
[1718212561562,0.57957486,3611.1,3610.8,2.76942]
[1718212561563,3.0,3611.1,3610.8,2.76942]
[1718212561714,3.0,3611.1,3610.8,3.43072651]
[1718212563319,3.0,3611.1,3610.8,4.86417165]
[1718212563853,3.0,3611.1,3611.0,2.76931]
[1718212567162,3.0,3611.1,3610.6,2.76958]
[1718212567318,3.0,3611.1,3610.6,4.20302514]
[1718212567520,3.0,3611.1,3610.6,4.17502514]
[1718212568563,2.76931,3611.0,3610.3,2.7698]
[1718212568721,3.0,3610.9,3610.3,4.20324514]
[1718212571425,3.0,3610.9,3610.3,4.06524514]
[1718212574819,3.0,3610.9,3610.3,2.6318]
[1718212575127,0.35795749,3610.8,3610.3,2.76984]
[1718212575406,5.24257486,3611.1,3610.3,2.76984]
[1718212576208,2.76945,3610.9,3610.3,2.76984]
[1718212576505,3.0,3610.8,3610.3,2.76984]
[1718212578157,3.0,3611.1,3610.5,2.76962]
[1718212583316,3.57957486,3611.1,3610.5,2.76962]
[1718212583863,3.0,3611.1,3610.5,2.76962]
[1718212587080,0.829,3611.0,3610.5,2.76962]
[1718212588869,3.0,3611.1,3610.5,2.76962]
[1718212589074,3.829,3611.1,3610.5,2.76962]
[1718212589279,4.40857486,3611.1,3610.5,2.76962]
[1718212590514,3.829,3611.1,3610.5,2.76962]
[1718212591115,3.0,3611.1,3610.7,2.76948]
[1718212592015,7.46,3611.2,3611.1,2.76923]
[1718212592176,7.46,3611.2,3611.1,7.80090514]
[1718212592516,7.46,3611.2,3611.1,10.07250514]
[1718212594397,7.46,3611.5,3611.4,2.769]
[1718212594620,7.46,3611.5,3611.4,4.20244514]
[1718212594819,7.46,3611.5,3611.4,5.20967265]
[1718212606743,7.46,3611.5,3611.4,1.43344514]
[1718212610044,7.46,3611.5,3611.1,2.76918]
[1718212610250,7.46,3611.5,3611.2,1.43344514]
[1718212611336,7.46,3611.5,3611.3,2.76908]
[1718212617871,5.7686,3612.0,3611.3,2.76908]
[1718212620686,5.7686,3612.0,3611.4,1.43344514]
[1718212620687,3.0,3612.0,3611.4,1.43344514]
[1718212620894,3.828,3612.0,3611.4,1.43344514]
[1718212621998,3.828,3612.0,3611.5,2.76887]
[1718212622305,3.828,3612.0,3611.7,2.76875]
[1718212622306,3.0,3612.0,3611.7,2.76875]
[1718212623597,3.0,3612.0,3611.7,4.20219514]
[1718212623768,0.57908836,3612.4,3611.8,1.43344514]
[1718212623769,3.57908836,3612.4,3611.8,1.43344514]
[1718212624108,3.0,3612.4,3611.8,3.73984514]
[1718212624624,7.46,3612.5,3611.9,0.88336847]
[1718212624918,7.46,3612.5,3612.3,2.76826]
[1718212625119,3.03788836,3612.8,3612.5,2.76815]
[1718212625313,2.4588,3612.8,3612.5,2.76815]
[1718212625607,0.57908836,3612.9,3612.5,2.76815]
[1718212625812,0.828,3613.0,3612.5,2.76815]
[1718212626191,3.828,3613.0,3612.5,2.76815]
[1718212626514,0.828,3612.8,3612.5,2.76815]
[1718212629076,0.828,3612.8,3612.3,1.43344514]
[1718212633699,0.828,3612.8,3612.4,2.76823]
[1718212634648,5.76781,3613.0,3612.4,2.76823]
[1718212634649,6.59581,3613.0,3612.4,2.76823]
[1718212634843,3.0,3613.0,3612.6,2.76805]
[1718212635018,3.828,3613.0,3612.6,2.76805]
[1718212636639,3.0,3613.0,3612.8,2.7679]
[1718212636837,3.0,3613.2,3612.8,2.7679]
[1718212637019,3.57908836,3613.3,3612.8,2.7679]
[1718212637343,1.40708836,3613.2,3612.8,2.7679]
[1718212637854,0.828,3613.2,3612.8,2.7679]
[1718212639007,0.57908836,3613.3,3613.0,2.76777]
[1718212639242,4.61458797,3613.4,3613.0,2.76777]
[1718212639427,4.03549961,3613.4,3613.0,2.76777]
[1718212639747,3.20749961,3613.4,3613.0,2.76777]
[1718212641243,3.0,3613.4,3613.2,2.76759]
[1718212641611,3.828,3613.4,3613.2,2.76759]
[1718212642451,3.0,3613.4,3613.2,2.76759]
[1718212644566,0.828,3613.6,3613.2,2.76759]
[1718212644863,0.828,3613.4,3612.9,2.76781]
[1718212645041,2.3532,3613.3,3612.9,4.20125514]
[1718212645232,5.3532,3613.3,3612.9,4.20125514]
[1718212648080,3.0,3613.3,3612.9,4.20125514]
[1718212648235,0.828,3613.4,3612.9,4.85528065]
[1718212648565,0.828,3613.4,3613.0,2.7677]
[1718212650896,3.0,3613.5,3613.1,2.76763]
[1718212651094,0.828,3613.6,3613.1,2.76763]
[1718212651405,3.828,3613.6,3613.1,2.76763]
[1718212651600,3.0,3613.6,3613.3,2.76753]
[1718212651801,6.1281,3613.7,3613.3,2.76753]
[1718212654491,0.828,3613.5,3613.3,2.76753]
[1718212657515,0.828,3613.5,3613.0,2.76771]
[1718212657692,0.828,3613.5,3613.0,4.20115514]
[1718212660963,0.828,3613.5,3612.7,2.76795]
[1718212661237,2.411,3613.2,3612.7,4.20139514]
[1718212661599,3.0,3613.2,3612.7,4.20139514]
[1718212661796,0.828,3613.3,3612.7,4.85797465]
[1718212662017,3.828,3613.3,3612.7,4.85797465]
[1718212664015,3.828,3613.3,3612.8,2.76786]
[1718212665373,3.828,3613.3,3613.0,2.76777]
[1718212665533,0.828,3613.3,3612.7,2.76796]
[1718212665865,3.0,3613.2,3612.7,2.76796]
[1718212666043,3.828,3613.3,3612.7,2.76796]
[1718212666438,3.0,3613.3,3612.9,2.76783]
[1718212666663,1.40708836,3613.4,3612.9,2.76783]
[1718212668438,0.57908836,3613.3,3612.9,2.76783]
[1718212669431,0.57908836,3613.2,3612.9,2.76783]
[1718212675559,0.57908836,3613.1,3612.9,2.76783]
[1718212679435,0.57908836,3613.0,3612.9,2.76783]
[1718212681257,0.86863255,3613.1,3612.9,2.76783]
[1718212682504,0.86863255,3613.1,3612.9,4.62140265]
[1718212682663,0.86863255,3613.1,3613.0,2.3735]
[1718212683085,3.86863255,3613.1,3613.0,2.3735]
[1718212683297,0.86863255,3613.1,3613.0,2.3735]
[1718212683498,0.86863255,3613.2,3613.1,2.7677]
[1718212683696,0.86863255,3613.2,3613.1,4.90063541]
[1718212683901,0.58112767,3613.2,3613.1,4.90063541]
[1718212685173,0.86863255,3613.3,3613.1,4.90063541]
[1718212685372,0.58105959,3613.2,3613.1,4.90063541]
[1718212687300,0.86863255,3613.3,3613.1,4.20114514]
[1718212689311,0.73063255,3613.3,3613.1,4.20114514]
[1718212689518,0.73063255,3613.3,3612.9,0.42012751]
[1718212689683,0.58100814,3613.1,3612.9,1.43344514]
[1718212689885,0.55300814,3613.0,3612.9,1.43344514]
[1718212691427,1.15817673,3613.2,3612.9,1.43344514]
[1718212691785,3.0,3613.3,3612.9,1.43344514]
[1718212691786,4.15817673,3613.3,3612.9,1.43344514]
[1718212692428,1.15817673,3613.2,3612.9,1.43344514]
[1718212693611,1.15817673,3613.2,3612.8,2.76789]
[1718212693812,1.15817673,3613.2,3612.8,4.20133514]
[1718212694016,1.15817673,3613.2,3612.8,4.695059]
[1718212694449,4.15817673,3613.3,3612.8,4.695059]
[1718212694623,1.15817673,3613.2,3612.8,4.695059]
[1718212695491,4.15817673,3613.3,3612.8,4.695059]
[1718212697405,1.15817673,3613.2,3612.8,4.20133514]
[1718212698319,0.87152408,3613.1,3612.8,4.20133514]
[1718212698621,1.15817673,3613.2,3612.8,4.20133514]
[1718212698622,0.87152408,3613.0,3612.8,4.20133514]
[1718212698823,0.87152408,3613.1,3612.8,4.20133514]
[1718212699221,0.87152408,3613.1,3612.8,4.85587865]
[1718212699827,0.58100189,3612.9,3612.8,4.85587865]
[1718212701790,0.58100189,3612.9,3612.8,4.20133514]
[1718212702518,0.87152408,3613.0,3612.8,4.20133514]
[1718212704928,0.58097289,3612.9,3612.8,4.20133514]
[1718212705102,0.58097289,3612.9,3612.5,2.76814]
[1718212705313,0.58097289,3612.7,3612.5,4.20158514]
[1718212705654,0.58097289,3612.6,3612.5,4.20158514]
[1718212705833,0.58097289,3612.7,3612.5,4.84783365]
[1718212706851,0.58097289,3612.8,3612.5,4.84783365]
[1718212707008,0.58097289,3612.8,3612.6,2.4821]
[1718212709268,0.58097289,3612.8,3612.7,2.76801]
[1718212710328,0.58097289,3612.9,3612.7,4.9344355]
[1718212712814,0.58097289,3612.8,3612.7,4.9344355]
[1718212713458,2.4683,3612.8,3612.7,4.9344355]
[1718212713759,2.4683,3612.8,3612.7,4.20145514]
[1718212714052,3.04927289,3612.8,3612.7,4.20145514]
[1718212716158,0.58097289,3612.8,3612.7,4.20145514]
[1718212718359,0.58097289,3612.8,3612.4,2.76819]
[1718212718659,0.58097289,3612.8,3612.1,2.7684]
[1718212718660,3.34897289,3612.8,3612.1,2.7684]
[1718212718829,1.40897289,3612.5,3611.8,2.76863]
[1718212719030,1.40897289,3612.5,3611.8,4.20207514]
[1718212719031,3.59634,3612.3,3611.8,4.20207514]
[1718212719231,2.3227,3612.2,3611.8,4.20207514]
[1718212719419,3.59634,3612.3,3611.8,4.20207514]
[1718212719420,0.58097289,3612.1,3611.8,4.67983885]
[1718212719621,0.58097289,3612.2,3611.8,4.67983885]
[1718212719851,3.34931289,3612.3,3611.8,4.67983885]
[1718212720430,0.58097289,3612.3,3611.8,4.67983885]
[1718212720824,2.99207289,3612.4,3611.8,4.67983885]
[1718212722243,2.4111,3612.4,3611.9,0.46798389]
[1718212722447,5.4111,3612.4,3611.9,0.46798389]
[1718212723531,5.4111,3612.4,3612.0,2.76851]
[1718212723750,3.0,3612.4,3612.3,2.76831]